[Event "EIRCC 2019"]
[Site "Tallinn"]
[Date "2019.12.06"]
[Round "13.10"]
[White "Lobanov, Sergei"]
[Black "Sanal, Vahap"]
[Result "1/2-1/2"]
[ECO "C88"]
[WhiteElo "2483"]
[BlackElo "2597"]
[Annotator "ChessBase"]
[PlyCount "297"]
[EventDate "2019.12.05"]
[EventType "swiss"]
[EventCountry "EST"]
[SourceTitle "playchess.com"]
[Source "ChessBase"]
[SourceQuality "1"]
[TimeControl "900+10"]

1. e4 {[%emt 0:00:00]} e5 {[%emt 0:00:00]} 2. Nf3 {[%emt 0:00:00]} Nc6 {[%emt 0:00:00]} 3. Bb5 {[%emt 0:00:00]} a6 {[%emt 0:00:00]} 4. Ba4 {[%emt 0:00:00]} Nf6 {[%emt 0:00:00]} 5. O-O {[%emt 0:00:00]} Be7 {[%emt 0:00:02]} 6. Re1 {[%emt 0:00:00]} b5 {[%emt 0:00:01]} 7. Bb3 {[%emt 0:00:00]} O-O {[%emt 0:00:02]} 8. a4 {[%emt 0:00:01]} Bb7 {[%emt 0:00:17]} 9. d3 {[%emt 0:00:03]} d6 {[%emt 0:00:02]} 10. c3 {[%emt 0:01:04]} Na5 {[%emt 0:00:05]} 11. Bc2 {[%emt 0:00:15]} c5 {[%emt 0:00:02]} 12. Nbd2 {[%emt 0:00:02]} Nc6 {[%emt 0:00:01]} 13. Nf1 {[%emt 0:00:05]} Re8 {[%emt 0:00:02]} 14. Ng3 {[%emt 0:00:31]} g6 {[%emt 0:00:02]} 15. d4 {[%emt 0:00:15]} cxd4 {[%emt 0:00:02]} 16. cxd4 {[%emt 0:00:01]} Nxd4 {[%emt 0:00:01]} 17. Nxd4 {[%emt 0:00:02]} exd4 {[%emt 0:00:01]} 18. Qxd4 {[%emt 0:01:34]} Rc8 {[%emt 0:00:02]} 19. Bd3 {[%emt 0:00:20]} d5 {[%emt 0:00:01]} 20. e5 {[%emt 0:00:56]} Ne4 {[%emt 0:00:14]} 21. b4 {[%emt 0:01:16]} a5 {[%emt 0:00:28]} 22. Ba3 {[%emt 0:00:26]} bxa4 {[%emt 0:00:28]} 23. bxa5 {[%emt 0:00:45]} Bxa3 {[%emt 0:00:02]} 24. Rxa3 {[%emt 0:00:02]} Qxa5 {[%emt 0:00:01]} 25. Rea1 {[%emt 0:02:39]} Nc5 {[%emt 0:00:19]} 26. Bc2 {[%emt 0:00:04]} Qc7 {[%emt 0:00:21]} 27. Bxa4 {[%emt 0:00:57]} Rxe5 {[%emt 0:00:07]} 28. Rc3 {[%emt 0:01:20]} Qe7 {[%emt 0:00:36]} 29. Bb5 {[%emt 0:01:20]} Re1+ {[%emt 0:03:56]} 30. Rxe1 {[%emt 0:00:02]} Qxe1+ {[%emt 0:00:01]} 31. Bf1 {[%emt 0:00:02]} Qe7 {[%emt 0:00:14]} 32. h4 {[%emt 0:00:54]} h5 {[%emt 0:00:27]} 33. Be2 {[%emt 0:00:45]} Ne6 {[%emt 0:01:21]} 34. Rxc8+ {[%emt 0:01:06]} Bxc8 {[%emt 0:00:02]} 35. Qxd5 {[%emt 0:00:02]} Qxh4 {[%emt 0:00:14]} 36. Qc6 {[%emt 0:01:23]} Qd8 {[%emt 0:00:13]} 37. Bc4 {[%emt 0:00:03]} Nf4 {[%emt 0:00:39]} 38. Ne4 {[%emt 0:00:31]} Be6 {[%emt 0:01:19]} 39. Bxe6 {[%emt 0:00:26]} Nxe6 {[%emt 0:00:02]} 40. Nd6 {[%emt 0:00:30]} Qf6 {[%emt 0:00:35]} 41. Qc8+ {[%emt 0:00:30]} Kh7 {[%emt 0:00:03]} 42. Qd7 {[%emt 0:00:07]} Ng5 {[%emt 0:00:09]} 43. Nc4 {[%emt 0:01:09]} Ne4 {[%emt 0:00:35]} 44. Qa7 {[%emt 0:00:01]} Nc3 {[%emt 0:01:01]} 45. Qe3 {[%emt 0:00:24]} Nd1 {[%emt 0:01:15]} 46. Qd2 {[%emt 0:00:09]} Nc3 {[%emt 0:00:07]} 47. Ne3 {[%emt 0:00:09]} Ne4 {[%emt 0:00:08]} 48. Qc2 {[%emt 0:00:02]} Qa1+ {[%emt 0:00:06]} 49. Kh2 {[%emt 0:00:04]} Qe5+ {[%emt 0:00:02]} 50. Kg1 {[%emt 0:00:00]} Qa1+ {[%emt 0:00:27]} 51. Kh2 {[%emt 0:00:03]} Qd4 {[%emt 0:00:03]} 52. Kg1 {[%emt 0:00:13]} Nf6 {[%emt 0:00:32]} 53. Qa2 {[%emt 0:00:19]} Kg7 {[%emt 0:00:09]} 54. Qc2 {[%emt 0:00:03]} Qb4 {[%emt 0:00:08]} 55. Qe2 {[%emt 0:00:30]} Qb1+ {[%emt 0:00:34]} 56. Kh2 {[%emt 0:00:07]} Qb8+ {[%emt 0:00:01]} 57. Kg1 {[%emt 0:00:05]} Qe5 {[%emt 0:00:04]} 58. Qc2 {[%emt 0:00:07]} Ne4 {[%emt 0:00:23]} 59. Nf1 {[%emt 0:00:11]} h4 {[%emt 0:00:26]} 60. Qe2 {[%emt 0:00:02]} Qf5 {[%emt 0:00:40]} 61. Qb2+ {[%emt 0:00:05]} Kh7 {[%emt 0:00:05]} 62. Qd4 {[%emt 0:00:06]} g5 {[%emt 0:00:44]} 63. Nd2 {[%emt 0:00:25]} Nf6 {[%emt 0:00:13]} 64. Nf1 {[%emt 0:00:09]} Ne4 {[%emt 0:00:42]} 65. Nd2 {[%emt 0:00:04]} Nc5 {[%emt 0:00:27]} 66. Nf1 {[%emt 0:00:24]} Ne6 {[%emt 0:00:02]} 67. Qe3 {[%emt 0:00:06]} Qb1 {[%emt 0:00:10]} 68. Qf3 {[%emt 0:00:27]} Kg6 {[%emt 0:00:26]} 69. Qc6 {[%emt 0:00:19]} Qa1 {[%emt 0:00:48]} 70. Qe4+ {[%emt 0:00:08]} Kg7 {[%emt 0:00:02]} 71. Qf5 {[%emt 0:00:01]} Kg8 {[%emt 0:00:11]} 72. g3 {[%emt 0:00:14]} hxg3 {[%emt 0:00:23]} 73. fxg3 {[%emt 0:00:01]} Qc1 {[%emt 0:00:07]} 74. Qe5 {[%emt 0:00:09]} Qc4 {[%emt 0:00:18]} 75. Kf2 {[%emt 0:00:09]} Qc2+ {[%emt 0:00:10]} 76. Qe2 {[%emt 0:00:39]} Qc5+ {[%emt 0:00:09]} 77. Qe3 {[%emt 0:00:02]} Qd5 {[%emt 0:00:12]} 78. Qf3 {[%emt 0:00:07]} Qc5+ {[%emt 0:00:02]} 79. Qe3 {[%emt 0:00:01]} Nd4 {[%emt 0:00:01]} 80. Nd2 {[%emt 0:00:06]} Qf5+ {[%emt 0:00:09]} 81. Kg2 {[%emt 0:00:05]} Nc2 {[%emt 0:00:25]} 82. Qe4 {[%emt 0:00:20]} Qc5 {[%emt 0:00:01]} 83. Qe8+ {[%emt 0:00:24]} Kg7 {[%emt 0:00:03]} 84. Ne4 {[%emt 0:00:18]} Qf5 {[%emt 0:00:17]} 85. Nf2 {[%emt 0:00:09]} Qc5 {[%emt 0:00:20]} 86. Ne4 {[%emt 0:00:02]} Qd5 {[%emt 0:00:18]} 87. Qg8+ {[%emt 0:00:02]} Kh6 {[%emt 0:00:38]} 88. Qf8+ {[%emt 0:00:19]} Kg6 {[%emt 0:00:02]} 89. Qd6+ {[%emt 0:00:15]} Qxd6 {[%emt 0:00:36]} 90. Nxd6 {[%emt 0:00:01]} Kf6 {[%emt 0:00:03]} 91. Kf3 {[%emt 0:00:02]} Ke6 {[%emt 0:00:05]} 92. Ne4 {[%emt 0:00:01]} f6 {[%emt 0:00:03]} 93. g4 {[%emt 0:00:24]} Ke5 {[%emt 0:00:02]} 94. Ng3 {[%emt 0:00:04]} Nd4+ {[%emt 0:00:13]} 95. Ke3 {[%emt 0:00:03]} Nc2+ {[%emt 0:00:04]} 96. Kf3 {[%emt 0:00:26]} Nb4 {[%emt 0:01:12]} 97. Ke3 {[%emt 0:00:11]} Nc6 {[%emt 0:00:07]} 98. Nh5 {[%emt 0:00:08]} Ke6 {[%emt 0:00:02]} 99. Kf3 {[%emt 0:00:09]} Ne5+ {[%emt 0:00:02]} 100. Kg3 {[%emt 0:00:02]} Nd7 {[%emt 0:00:01]} 101. Ng7+ {[%emt 0:00:06]} Ke5 {[%emt 0:00:02]} 102. Kf3 {[%emt 0:00:04]} Kd5 {[%emt 0:00:01]} 103. Nh5 {[%emt 0:00:03]} Kd4 {[%emt 0:00:01]} 104. Ng7 {[%emt 0:00:05]} Ne5+ {[%emt 0:00:16]} 105. Kg3 {[%emt 0:00:01]} Ke3 {[%emt 0:00:04]} 106. Nf5+ {[%emt 0:00:10]} Ke2 {[%emt 0:00:10]} 107. Nd6 {[%emt 0:00:04]} Nd7 {[%emt 0:00:04]} 108. Ne8 {[%emt 0:00:49]} Ke3 {[%emt 0:00:03]} 109. Nd6 {[%emt 0:00:13]} Nc5 {[%emt 0:00:05]} 110. Nf5+ {[%emt 0:00:07]} Ke4 {[%emt 0:00:17]} 111. Nd6+ {[%emt 0:00:07]} Ke3 {[%emt 0:00:22]} 112. Nf5+ {[%emt 0:00:15]} Ke2 {[%emt 0:00:02]} 113. Nd6 {[%emt 0:00:04]} Nd7 {[%emt 0:00:37]} 114. Nf5 {[%emt 0:00:22]} Nb6 {[%emt 0:00:01]} 115. Nd4+ {[%emt 0:00:09]} Kd3 {[%emt 0:00:05]} 116. Nf5 {[%emt 0:00:02]} Nc4 {[%emt 0:00:17]} 117. Ne7 {[%emt 0:00:21]} Ke4 {[%emt 0:00:20]} 118. Ng8 {[%emt 0:00:11]} Ke5 {[%emt 0:00:01]} 119. Kf3 {[%emt 0:00:06]} Ke6 {[%emt 0:00:02]} 120. Nh6 {[%emt 0:00:13]} Nd6 {[%emt 0:00:04]} 121. Ke3 {[%emt 0:00:02]} Ke7 {[%emt 0:01:42]} 122. Kd4 {[%emt 0:00:03]} Ke6 {[%emt 0:00:19]} 123. Ke3 {[%emt 0:00:13]} Nf7 {[%emt 0:00:21]} 124. Nxf7 {[%emt 0:00:01]} Kxf7 {[%emt 0:00:01]} 125. Kf3 {[%emt 0:00:08]} Ke7 {[%emt 0:00:09]} 126. Ke3 {[%emt 0:00:02]} Kf8 {[%emt 0:00:05]} 127. Kf2 {[%emt 0:00:05]} Ke8 {[%emt 0:00:01]} 128. Ke2 {[%emt 0:00:01]} Kd8 {[%emt 0:00:01]} 129. Kd2 {[%emt 0:00:05]} Kc7 {[%emt 0:00:00]} 130. Kc3 {[%emt 0:00:05]} Kb6 {[%emt 0:00:03]} 131. Kb4 {[%emt 0:00:18]} Kb7 {[%emt 0:00:01]} 132. Kb3 {[%emt 0:00:02]} Kb8 {[%emt 0:00:01]} 133. Kb2 {[%emt 0:00:24]} Ka8 {[%emt 0:00:01]} 134. Ka2 {[%emt 0:00:04]} Ka7 {[%emt 0:00:09]} 135. Ka3 {[%emt 0:00:02]} Ka6 {[%emt 0:00:10]} 136. Ka4 {[%emt 0:00:02]} Kb7 {[%emt 0:00:03]} 137. Kb3 {[%emt 0:00:04]} Kc6 {[%emt 0:00:03]} 138. Kc4 {[%emt 0:00:02]} Kd6 {[%emt 0:00:00]} 139. Kd4 {[%emt 0:00:01]} Ke7 {[%emt 0:00:02]} 140. Ke3 {[%emt 0:00:03]} Kf7 {[%emt 0:00:02]} 141. Kf3 {[%emt 0:00:02]} Kg8 {[%emt 0:00:01]} 142. Kg2 {[%emt 0:00:02]} Kg7 {[%emt 0:00:02]} 143. Kg3 {[%emt 0:00:08]} Kf8 {[%emt 0:00:09]} 144. Kf2 {[%emt 0:00:01]} Ke7 {[%emt 0:00:22]} 145. Ke3 {[%emt 0:00:01]} Kd7 {[%emt 0:00:00]} 146. Kd3 {[%emt 0:00:02]} Kc6 {[%emt 0:00:02]} 147. Kc4 {[%emt 0:00:00]} Kc7 {[%emt 0:00:04]} 148. Kc3 {[%emt 0:00:01]} Kb6 {[%emt 0:00:03]} 149. Kb4 {[%emt 0:00:02]} 1/2-1/2